fUST/lending_fUST_20250704
["ID","MTS","AMOUNT","RATE_DAILY","PERIOD"]
[369601340,1751639444246,-460.0,0.00016438,2]
[369601342,1751639444259,-235.88028879,0.00016438,2]
[369601344,1751639444270,-460.0,0.00016438,2]
[369601346,1751639444282,-460.0,0.00016438,2]
[369601349,1751639444294,-460.0,0.00016438,2]
[369601351,1751639444305,-1045.33,0.00016438,2]
[369601353,1751639444317,-1477.98,0.00016438,2]
[369601355,1751639444329,-460.0,0.00016438,2]
[369601357,1751639444340,-460.0,0.00016438,2]
[369601359,1751639444352,-460.0,0.00016438,2]
[369601361,1751639444362,-1294.52,0.00016438,2]
[369601363,1751639444374,-940.7,0.00016438,2]
[369601366,1751639444385,-460.0,0.00016438,2]
[369601368,1751639444396,-460.0,0.00016438,2]
[369601369,1751639444407,-460.0,0.00016438,2]
[369601370,1751639444418,-460.0,0.00016438,2]
[369601371,1751639444429,-460.0,0.00016438,2]
[369601372,1751639444440,-460.0,0.00016438,2]
[369601373,1751639444451,-460.0,0.00016438,2]
[369601374,1751639444465,-460.0,0.00016438,2]
[369601375,1751639444477,-460.0,0.00016438,2]
[369601376,1751639444490,-460.0,0.00016438,2]
[369601377,1751639444501,-1381.49,0.00016438,2]
[369601378,1751639444512,-460.0,0.00016438,2]
[369601379,1751639444523,-460.0,0.00016438,2]
[369601380,1751639444534,-460.0,0.00016438,2]
[369601381,1751639444546,-460.0,0.00016438,2]
[369601382,1751639444558,-1536.37,0.00016438,2]
[369601383,1751639444569,-460.0,0.00016438,2]
[369601384,1751639444581,-460.0,0.00016438,2]
[369601385,1751639444591,-460.0,0.00016438,2]
[369601386,1751639444603,-460.0,0.00016438,2]
[369601387,1751639444614,-460.0,0.00016438,2]
[369601388,1751639444625,-887.1,0.00016438,2]
[369601389,1751639444636,-460.0,0.00016438,2]
[369601390,1751639444647,-1906.15,0.00016438,2]
[369601391,1751639444658,-2258.56,0.00016438,2]
[369601392,1751639444669,-460.0,0.00016438,2]
[369601393,1751639444681,-460.0,0.00016438,2]
[369601394,1751639444692,-460.0,0.00016438,2]
[369601395,1751639444704,-460.0,0.00016438,2]
[369601396,1751639444715,-460.0,0.00016438,2]
[369601397,1751639444727,-1497.27,0.00016438,2]
[369601398,1751639444738,-460.0,0.00016438,2]
[369601399,1751639444747,-460.0,0.00016438,2]
[369601400,1751639444757,-916.41,0.00016438,2]
[369601401,1751639444767,-691.33,0.00016438,2]
[369601402,1751639444776,-370.0,0.00016438,2]
[369601403,1751639444786,-2310.45,0.00016438,2]
[369601404,1751639444795,-460.0,0.00016438,2]
[369601405,1751639444805,-460.0,0.00016438,2]
[369601406,1751639445021,-460.0,0.00016438,2]
[369601407,1751639445042,-460.0,0.00016438,2]
[369601408,1751639445052,-460.0,0.00016438,2]
[369601409,1751639445062,-460.0,0.00016438,2]
[369601410,1751639445072,-460.0,0.00016438,2]
[369601411,1751639445081,-460.0,0.00016438,2]
[369601412,1751639445091,-460.0,0.00016438,2]
[369601413,1751639445100,-460.0,0.00016438,2]
[369601414,1751639445110,-460.0,0.00016438,2]
[369601415,1751639445119,-1038.33,0.00016438,2]
[369601416,1751639445129,-460.0,0.00016438,2]
[369601417,1751639445138,-460.0,0.00016438,2]
[369601418,1751639445148,-300.0,0.00016438,2]
[369601419,1751639445158,-460.0,0.00016438,2]
[369601420,1751639445167,-460.0,0.00016438,2]
[369601421,1751639445177,-460.0,0.00016438,2]
[369601422,1751639445187,-460.0,0.00016438,2]
[369601423,1751639445196,-460.0,0.00016438,2]
[369601424,1751639445205,-460.0,0.00016438,2]
[369601425,1751639445215,-460.0,0.00016438,2]
[369601426,1751639445225,-460.0,0.00016438,2]
[369601427,1751639445235,-592.38,0.00016438,2]
[369601428,1751639445244,-460.0,0.00016438,2]
[369601429,1751639445253,-460.0,0.00016438,2]
[369601430,1751639445261,-460.0,0.00016438,2]
[369601431,1751639445271,-5000.0,0.00016526,2]
[369601432,1751639445280,-207.4,0.00016526,2]
[369601433,1751639445298,-230.40116161,0.00016612,2]
[369601434,1751639445310,-12578.03337979,0.00016612,2]
[369601435,1751639445321,-837.48520791,0.00016612,2]
[369601436,1751639445331,-213.97741257,0.00016612,2]
[369601437,1751639445341,-160.0,0.00016612,2]
[369601439,1751639445351,-215.11129906,0.00016612,2]
[369601440,1751639445361,-847.91215827,0.00016612,2]
[369601441,1751639445371,-160.0,0.00016612,2]
[369601442,1751639445380,-160.0,0.00016612,2]
[369601443,1751639445390,-160.0,0.00016612,2]
[369601444,1751639445400,-460.0,0.00016712,2]
[369601445,1751639445410,-460.0,0.00016712,2]
[369601446,1751639445422,-460.0,0.00016712,2]
[369601447,1751639445431,-460.0,0.00016712,2]
[369601448,1751639445442,-460.0,0.00016712,2]
[369601449,1751639445452,-460.0,0.00016712,2]
[369601450,1751639445464,-460.0,0.00016712,2]
[369601451,1751639445479,-460.0,0.00016712,2]
[369601452,1751639445490,-460.0,0.00016712,2]
[369601453,1751639445499,-460.0,0.00016712,2]
[369601454,1751639445511,-460.0,0.00016712,2]
[369601455,1751639445522,-460.0,0.00016712,2]
[369601456,1751639445532,-460.0,0.00016712,2]
[369601457,1751639445542,-460.0,0.00016712,2]
[369601458,1751639445554,-460.0,0.00016712,2]
[369601459,1751639445564,-460.0,0.00016712,2]
[369601460,1751639445574,-460.0,0.00016712,2]
[369601461,1751639445585,-385.98087616,0.00016712,2]
[369601462,1751639445595,-560.92994817,0.00016712,2]
[369601463,1751639445605,-460.0,0.00016712,2]
[369601464,1751639445615,-460.0,0.00016712,2]
[369601465,1751639445625,-845.88,0.00016712,2]
[369601466,1751639445635,-460.0,0.00016712,2]
[369601467,1751639445644,-460.0,0.00016712,2]
[369601468,1751639445654,-601.92,0.00016712,2]
[369601469,1751639445664,-460.0,0.00016712,2]
[369601470,1751639445675,-460.0,0.00016712,2]
[369601471,1751639445686,-460.0,0.00016712,2]
[369601472,1751639445697,-460.0,0.00016712,2]
[369601473,1751639445707,-460.0,0.00016712,2]
[369601474,1751639445718,-460.0,0.00016712,2]
[369601475,1751639445727,-460.0,0.00016712,2]
[369601476,1751639445737,-630.66,0.00016712,2]
[369601477,1751639445747,-460.0,0.00016712,2]
[369601478,1751639445757,-460.0,0.00016712,2]
[369601479,1751639445767,-1045.33,0.00016712,2]
[369601480,1751639445777,-1477.98,0.00016712,2]
[369601481,1751639445787,-1294.52,0.00016712,2]
[369601482,1751639445797,-940.7,0.00016712,2]
[369601483,1751639445807,-460.0,0.00016712,2]
[369601484,1751639445818,-460.0,0.00016712,2]
[369601485,1751639445828,-460.0,0.00016712,2]
[369601486,1751639445838,-460.0,0.00016712,2]
[369601487,1751639445848,-460.0,0.00016712,2]
[369601488,1751639445858,-460.0,0.00016712,2]
[369601489,1751639445867,-460.0,0.00016712,2]
[369601490,1751639445876,-460.0,0.00016712,2]
[369601491,1751639445886,-1381.49,0.00016712,2]
[369601492,1751639445895,-460.0,0.00016712,2]
[369601493,1751639445905,-460.0,0.00016712,2]
[369601494,1751639445917,-1536.37,0.00016712,2]
[369601495,1751639445926,-460.0,0.00016712,2]
[369601496,1751639445936,-460.0,0.00016712,2]
[369601497,1751639445945,-460.0,0.00016712,2]
[369601498,1751639445955,-460.0,0.00016712,2]
[369601499,1751639445965,-887.1,0.00016712,2]
[369601500,1751639445975,-460.0,0.00016712,2]
[369601501,1751639445985,-1906.15,0.00016712,2]
[369601502,1751639445995,-2258.56,0.00016712,2]
[369601503,1751639446005,-460.0,0.00016712,2]
[369601504,1751639446015,-460.0,0.00016712,2]
[369601505,1751639446025,-460.0,0.00016712,2]
[369601506,1751639446034,-460.0,0.00016712,2]
[369601507,1751639446044,-460.0,0.00016712,2]
[369601508,1751639446054,-1497.27,0.00016712,2]
[369601509,1751639446064,-460.0,0.00016712,2]
[369601510,1751639446074,-916.41,0.00016712,2]
[369601511,1751639446083,-691.33,0.00016712,2]
[369601512,1751639446093,-2310.45,0.00016712,2]
[369601513,1751639446103,-460.0,0.00016712,2]
[369601514,1751639446113,-460.0,0.00016712,2]
[369601515,1751639446123,-460.0,0.00016712,2]
[369601516,1751639446132,-460.0,0.00016712,2]
[369601517,1751639446142,-460.0,0.00016712,2]
[369601518,1751639446152,-1038.33,0.00016712,2]
[369601519,1751639446162,-460.0,0.00016712,2]
[369601520,1751639446171,-460.0,0.00016712,2]
[369601521,1751639446181,-460.0,0.00016712,2]
[369601522,1751639446191,-460.0,0.00016712,2]
[369601523,1751639446201,-460.0,0.00016712,2]
[369601524,1751639446210,-460.0,0.00016712,2]
[369601525,1751639446221,-460.0,0.00016712,2]
[369601526,1751639446231,-460.0,0.00016712,2]
[369601527,1751639446240,-460.0,0.00016712,2]
[369601528,1751639446250,-592.38,0.00016712,2]
[369601529,1751639446260,-460.0,0.00016712,2]
[369601530,1751639446269,-306.0,0.0001674,2]
[369601531,1751639446279,-500.0,0.00016767,2]
[369601532,1751639446288,-617.3738906,0.00016772,2]
[369601533,1751639446299,-500.0,0.00016794,2]
[369601534,1751639446308,-500.0,0.00016822,2]
[369601536,1751639446319,-500.0,0.00016849,2]
[369601537,1751639446329,-237.0,0.00016866,2]
[369601540,1751639446339,-500.0,0.00016877,2]
[369601541,1751639446348,-420.0,0.00016886,2]
[369601543,1751639446358,-738.68660557,0.00016887,2]
[369601544,1751639446372,-7830.77030486,0.000169,2]
[369601545,1751639446382,-1067.0,0.00016971,2]
[369601546,1751639446391,-460.0,0.00016986,2]
[369601547,1751639446402,-460.0,0.00016986,2]
[369601548,1751639446412,-460.0,0.00016986,2]
[369601550,1751639446422,-460.0,0.00016986,2]
[369601551,1751639446432,-460.0,0.00016986,2]
[369601552,1751639446442,-460.0,0.00016986,2]
[369601553,1751639446452,-460.0,0.00016986,2]
[369601554,1751639446461,-460.0,0.00016986,2]
[369601556,1751639446471,-460.0,0.00016986,2]
[369601557,1751639446485,-460.0,0.00016986,2]
[369601558,1751639446495,-460.0,0.00016986,2]
[369601560,1751639446505,-460.0,0.00016986,2]
[369601562,1751639446515,-460.0,0.00016986,2]
[369601563,1751639446527,-460.0,0.00016986,2]
[369601564,1751639446536,-460.0,0.00016986,2]
[369601566,1751639446546,-460.0,0.00016986,2]
[369601567,1751639446558,-460.0,0.00016986,2]
[369601568,1751639446568,-460.0,0.00016986,2]
[369601569,1751639446578,-460.0,0.00016986,2]
[369601570,1751639446587,-845.88,0.00016986,2]
[369601571,1751639446597,-460.0,0.00016986,2]
[369601572,1751639446606,-460.0,0.00016986,2]
[369601573,1751639446616,-601.92,0.00016986,2]
[369601574,1751639446625,-460.0,0.00016986,2]
[369601575,1751639446635,-460.0,0.00016986,2]
[369601576,1751639446645,-540.0,0.00016986,2]
[369601577,1751639446654,-460.0,0.00016986,2]
[369601578,1751639446664,-460.0,0.00016986,2]
[369601579,1751639446673,-630.66,0.00016986,2]
[369601580,1751639446683,-460.0,0.00016986,2]
[369601581,1751639446692,-460.0,0.00016986,2]
[369601582,1751639446702,-1045.33,0.00016986,2]
[369601583,1751639446711,-1477.98,0.00016986,2]
[369601584,1751639446721,-1294.52,0.00016986,2]
[369601585,1751639446731,-940.7,0.00016986,2]
[369601586,1751639446741,-460.0,0.00016986,2]
[369601587,1751639446750,-460.0,0.00016986,2]
[369601588,1751639446760,-460.0,0.00016986,2]
[369601589,1751639446770,-460.0,0.00016986,2]
[369601590,1751639446780,-460.0,0.00016986,2]
[369601591,1751639446789,-460.0,0.00016986,2]
[369601592,1751639446799,-460.0,0.00016986,2]
[369601593,1751639446808,-1381.49,0.00016986,2]
[369601594,1751639446818,-460.0,0.00016986,2]
[369601595,1751639446828,-460.0,0.00016986,2]
[369601596,1751639446837,-1536.37,0.00016986,2]
[369601597,1751639446847,-460.0,0.00016986,2]
[369601598,1751639446857,-460.0,0.00016986,2]
[369601599,1751639446866,-460.0,0.00016986,2]
[369601600,1751639446875,-887.1,0.00016986,2]
[369601601,1751639446885,-460.0,0.00016986,2]
[369601602,1751639446895,-1906.15,0.00016986,2]
[369601603,1751639446905,-2258.56,0.00016986,2]
[369601604,1751639446915,-460.0,0.00016986,2]
[369601605,1751639446924,-460.0,0.00016986,2]
[369601606,1751639446934,-460.0,0.00016986,2]
[369601607,1751639446943,-460.0,0.00016986,2]
[369601608,1751639446953,-460.0,0.00016986,2]
[369601609,1751639446963,-1497.27,0.00016986,2]
[369601610,1751639446973,-460.0,0.00016986,2]
[369601611,1751639446983,-691.33,0.00016986,2]
[369601612,1751639446993,-2310.45,0.00016986,2]
[369601613,1751639447003,-460.0,0.00016986,2]
[369601614,1751639447013,-916.41,0.00016986,2]
[369601615,1751639447023,-460.0,0.00016986,2]
[369601616,1751639447032,-460.0,0.00016986,2]
[369601617,1751639447042,-460.0,0.00016986,2]
[369601618,1751639447052,-460.0,0.00016986,2]
[369601619,1751639447061,-1038.33,0.00016986,2]
[369601620,1751639447071,-460.0,0.00016986,2]
[369601621,1751639447080,-406.95193113,0.00016986,2]
[369601622,1751639447212,-460.0,0.00016438,2]
[369601623,1751639447222,-53.04806887,0.00016986,2]
[369601624,1751639447232,-460.0,0.00016986,2]
[369601625,1751639447242,-460.0,0.00016986,2]
[369601626,1751639447252,-460.0,0.00016986,2]
[369601627,1751639447261,-460.0,0.00016986,2]
[369601628,1751639447271,-460.0,0.00016986,2]
[369601629,1751639447280,-460.0,0.00016986,2]
[369601630,1751639447290,-592.38,0.00016986,2]
[369601631,1751639447300,-377.74329543,0.00016986,2]
[369601632,1751639447309,-237.0,0.00016988,2]
[369601633,1751639447321,-237.0,0.00016988,2]
[369601634,1751639447331,-981.76,0.00017,2]
[369601635,1751639447341,-5440.92369129,0.00017,2]
[369601636,1751639447351,-5000.0,0.00017074,2]
[369601637,1751639447361,-500.0,0.000171,2]
[369601638,1751639447371,-500.0,0.000171,2]
[369601639,1751639447382,-500.0,0.00017115,2]
[369601640,1751639447392,-500.0,0.00017115,2]
[369601641,1751639447403,-500.0,0.00017115,2]
[369601642,1751639447413,-338.96065676,0.00017164,2]
[369601643,1751639447424,-7830.77030469,0.00017176,2]
[369601644,1751639447434,-404.23,0.00017178,2]
[369601645,1751639447444,-426.698,0.00017178,2]
[369601646,1751639447455,-967.0,0.00017178,2]
[369601647,1751639447467,-169.6,0.00017196,2]
[369601648,1751639447480,-617.3738906,0.00017206,2]
[369601649,1751639447491,-460.0,0.0001726,2]
[369601650,1751639447502,-460.0,0.0001726,2]
[369601651,1751639447512,-460.0,0.0001726,2]
[369601652,1751639447523,-460.0,0.0001726,2]
[369601653,1751639447533,-460.0,0.0001726,2]
[369601654,1751639447543,-460.0,0.0001726,2]
[369601655,1751639447553,-460.0,0.0001726,2]
[369601656,1751639447564,-460.0,0.0001726,2]
[369601657,1751639447573,-199.579521,0.0001726,2]
[369601658,1751639447583,-460.0,0.0001726,2]
[369601659,1751639447592,-460.0,0.0001726,2]
[369601660,1751639447602,-460.0,0.0001726,2]
[369601661,1751639447612,-460.0,0.0001726,2]
[369601662,1751639447622,-460.0,0.0001726,2]
[369601663,1751639447631,-460.0,0.0001726,2]
[369601664,1751639447642,-460.0,0.0001726,2]
[369601665,1751639447652,-460.0,0.0001726,2]
[369601666,1751639447661,-845.88,0.0001726,2]
[369601667,1751639447671,-460.0,0.0001726,2]
[369601668,1751639447684,-460.0,0.0001726,2]
[369601669,1751639447693,-601.92,0.0001726,2]
[369601670,1751639447703,-176.51,0.0001726,2]
[369601671,1751639447713,-460.0,0.0001726,2]
[369601672,1751639447723,-460.0,0.0001726,2]
[369601673,1751639447733,-460.0,0.0001726,2]
[369601674,1751639447742,-630.66,0.0001726,2]
[369601675,1751639447752,-460.0,0.0001726,2]
[369601676,1751639447762,-1045.33,0.0001726,2]
[369601677,1751639447772,-1477.98,0.0001726,2]
[369601678,1751639447782,-1294.52,0.0001726,2]
[369601679,1751639447791,-940.7,0.0001726,2]
[369601680,1751639447801,-460.0,0.0001726,2]
[369601681,1751639447811,-460.0,0.0001726,2]
[369601682,1751639447820,-460.0,0.0001726,2]
[369601683,1751639447830,-460.0,0.0001726,2]
[369601684,1751639447840,-460.0,0.0001726,2]
[369601685,1751639447850,-363.57693086,0.0001726,2]
[369601686,1751639447860,-1381.49,0.0001726,2]
[369601687,1751639447870,-460.0,0.0001726,2]
[369601688,1751639447879,-460.0,0.0001726,2]
[369601689,1751639447889,-1536.37,0.0001726,2]
[369601690,1751639447898,-460.0,0.0001726,2]
[369601691,1751639447908,-460.0,0.0001726,2]
[369601692,1751639447918,-460.0,0.0001726,2]
[369601693,1751639447928,-887.1,0.0001726,2]
[369601694,1751639447938,-460.0,0.0001726,2]
[369601695,1751639447947,-1906.15,0.0001726,2]
[369601696,1751639447957,-2258.56,0.0001726,2]
[369601697,1751639447968,-460.0,0.0001726,2]
[369601698,1751639447977,-460.0,0.0001726,2]
[369601699,1751639447987,-460.0,0.0001726,2]
[369601700,1751639447997,-460.0,0.0001726,2]
[369601701,1751639448007,-460.0,0.0001726,2]
[369601702,1751639448017,-1497.27,0.0001726,2]
[369601703,1751639448027,-460.0,0.0001726,2]
[369601704,1751639448037,-691.33,0.0001726,2]
[369601705,1751639448047,-2310.45,0.0001726,2]
[369601706,1751639448058,-460.0,0.0001726,2]
[369601707,1751639448067,-916.41,0.0001726,2]
[369601708,1751639448077,-460.0,0.0001726,2]
[369601709,1751639448087,-460.0,0.0001726,2]
[369601710,1751639448097,-460.0,0.0001726,2]
[369601711,1751639448106,-460.0,0.0001726,2]
[369601712,1751639448115,-1038.33,0.0001726,2]
[369601713,1751639448125,-460.0,0.0001726,2]
[369601714,1751639448134,-460.0,0.0001726,2]
[369601715,1751639448144,-460.0,0.0001726,2]
[369601716,1751639448154,-460.0,0.0001726,2]
[369601717,1751639448163,-460.0,0.0001726,2]
[369601718,1751639448173,-460.0,0.0001726,2]
[369601719,1751639448183,-559.72,0.0001726,2]
[369601720,1751639448341,-460.0,0.0001726,2]
[369601721,1751639448351,-592.38,0.0001726,2]
[369601722,1751639448361,-156.0123712,0.00017315,2]
[369601723,1751639448371,-153.0,0.00017315,2]
[369601724,1751639448381,-153.0,0.00017315,2]
[369601725,1751639448391,-153.0,0.00017315,2]
[369601726,1751639448401,-237.0,0.00017389,2]
[369601727,1751639448410,-227.389,0.00017398,2]
[369601728,1751639448420,-460.0,0.00017451,2]
[369601729,1751639448430,-460.0,0.00017451,2]
[369601730,1751639448440,-460.0,0.00017451,2]
[369601731,1751639448450,-460.0,0.00017451,2]
[369601732,1751639448460,-901.08,0.00017451,2]
[369601733,1751639448470,-2685.12,0.00017451,2]
[369601734,1751639448483,-460.0,0.00017451,2]
[369601735,1751639448493,-596.03,0.00017451,2]
[369601736,1751639448504,-697.48,0.00017451,2]
[369601737,1751639448521,-786.49,0.00017451,2]
[369601738,1751639448533,-460.0,0.00017451,2]
[369601739,1751639448543,-494.25,0.00017451,2]
[369601740,1751639448555,-7830.77030469,0.00017452,2]
[369601741,1751639448565,-2541.41647788,0.00017534,2]
[369601742,1751639448575,-18184.54228934,0.00017534,2]
[369601743,1751639448585,-151.0,0.00017534,2]
[369601744,1751639448595,-151.442658,0.00017534,2]
[369601745,1751639448605,-460.0,0.00017534,2]
[369601746,1751639448615,-580.96316303,0.00017534,2]
[369601747,1751639448625,-460.0,0.00017534,2]
[369601748,1751639448635,-460.0,0.00017534,2]
[369601749,1751639448645,-460.0,0.00017534,2]
[369601750,1751639448655,-460.0,0.00017534,2]
[369601751,1751639448664,-460.0,0.00017534,2]
[369601752,1751639448674,-845.88,0.00017534,2]
[369601753,1751639448684,-460.0,0.00017534,2]
[369601754,1751639448694,-460.0,0.00017534,2]
[369601755,1751639448703,-601.92,0.00017534,2]
[369601756,1751639448713,-460.0,0.00017534,2]
[369601757,1751639448724,-630.66,0.00017534,2]
[369601758,1751639448733,-460.0,0.00017534,2]
[369601759,1751639448743,-1045.33,0.00017534,2]
[369601760,1751639448753,-1477.98,0.00017534,2]
[369601761,1751639448763,-1294.52,0.00017534,2]
[369601762,1751639448774,-940.7,0.00017534,2]
[369601763,1751639448784,-460.0,0.00017534,2]
[369601764,1751639448794,-460.0,0.00017534,2]
[369601765,1751639448804,-460.0,0.00017534,2]
[369601766,1751639448814,-460.0,0.00017534,2]
[369601767,1751639448823,-460.0,0.00017534,2]
[369601768,1751639448833,-1381.49,0.00017534,2]
[369601769,1751639448843,-460.0,0.00017534,2]
[369601770,1751639448853,-460.0,0.00017534,2]
[369601771,1751639448863,-1536.37,0.00017534,2]
[369601772,1751639448873,-460.0,0.00017534,2]
[369601773,1751639448883,-460.0,0.00017534,2]
[369601774,1751639448893,-460.0,0.00017534,2]
[369601775,1751639448903,-887.1,0.00017534,2]
[369601776,1751639448913,-460.0,0.00017534,2]
[369601777,1751639448923,-1906.15,0.00017534,2]
[369601778,1751639448932,-2258.56,0.00017534,2]
[369601779,1751639448943,-460.0,0.00017534,2]
[369601780,1751639448953,-1497.27,0.00017534,2]
[369601781,1751639448963,-460.0,0.00017534,2]
[369601782,1751639448974,-691.33,0.00017534,2]
[369601783,1751639448985,-2310.45,0.00017534,2]
[369601784,1751639448995,-916.41,0.00017534,2]
[369601785,1751639449006,-193.24,0.00017534,2]
[369601786,1751639449016,-460.0,0.00017534,2]
[369601787,1751639449027,-460.0,0.00017534,2]
[369601788,1751639449036,-460.0,0.00017534,2]
[369601789,1751639449046,-151.0,0.00017534,2]
[369601790,1751639449056,-1038.33,0.00017534,2]
[369601791,1751639449065,-460.0,0.00017534,2]
[369601792,1751639449075,-460.0,0.00017534,2]
[369601793,1751639449084,-460.0,0.00017534,2]
[369601794,1751639449094,-460.0,0.00017534,2]
[369601795,1751639449104,-460.0,0.00017534,2]
[369601796,1751639449114,-592.38,0.00017534,2]
[369601797,1751639449123,-169.6,0.00017601,2]
[369601798,1751639449133,-617.3738906,0.00017639,2]
[369601799,1751639449142,-1000.0,0.00017648,2]
[369601800,1751639449152,-1000.0,0.00017663,2]
[369601801,1751639449162,-1000.0,0.00017663,2]
[369601802,1751639449171,-1000.0,0.00017663,2]
[369601803,1751639449182,-200.0,0.0001769,2]
[369601804,1751639449191,-250.0,0.00017695,2]
[369601805,1751639449201,-460.0,0.00017725,2]
[369601806,1751639449211,-460.0,0.00017725,2]
[369601807,1751639449220,-460.0,0.00017725,2]
[369601808,1751639449231,-460.0,0.00017725,2]
[369601809,1751639449240,-901.08,0.00017725,2]
[369601810,1751639449250,-2685.12,0.00017725,2]
[369601811,1751639449259,-460.0,0.00017725,2]
[369601812,1751639449271,-596.03,0.00017725,2]
[369601813,1751639449282,-697.48,0.00017725,2]
[369601814,1751639449291,-786.49,0.00017725,2]
[369601815,1751639449301,-494.25,0.00017725,2]
[369601816,1751639449311,-7830.77030469,0.00017728,2]
[369601817,1751639449320,-151.0,0.00017754,2]
[369601818,1751639449330,-151.0,0.00017754,2]
[369601819,1751639449340,-237.0,0.00017761,2]
[369601820,1751639449350,-250.0,0.00017776,2]
[369601821,1751639449360,-1059.23240565,0.000178,2]
[369601822,1751639449369,-641.0,0.000178,2]
[369601823,1751639449380,-151.0,0.00017808,2]
[369601824,1751639449389,-151.0,0.00017808,2]
[369601825,1751639449399,-151.0,0.00017808,2]
[369601826,1751639449409,-151.0,0.00017808,2]
[369601827,1751639449418,-1117.52431012,0.00017808,2]
[369601828,1751639449428,-460.0,0.00017808,2]
[369601829,1751639449438,-460.0,0.00017808,2]
[369601830,1751639449447,-460.0,0.00017808,2]
[369601831,1751639449457,-460.0,0.00017808,2]
[369601832,1751639449468,-460.0,0.00017808,2]
[369601833,1751639449482,-460.0,0.00017808,2]
[369601834,1751639449492,-845.88,0.00017808,2]
[369601835,1751639449501,-460.0,0.00017808,2]
[369601836,1751639449511,-460.0,0.00017808,2]
[369601837,1751639449522,-601.92,0.00017808,2]
[369601838,1751639449532,-460.0,0.00017808,2]
[369601839,1751639449541,-151.0,0.00017808,2]
[369601840,1751639449551,-630.66,0.00017808,2]
[369601841,1751639449560,-1045.33,0.00017808,2]
[369601842,1751639449570,-460.0,0.00017808,2]
[369601843,1751639449579,-1477.98,0.00017808,2]
[369601844,1751639449588,-1294.52,0.00017808,2]
[369601845,1751639449598,-940.7,0.00017808,2]
[369601846,1751639449609,-151.0,0.00017808,2]
[369601847,1751639449619,-460.0,0.00017808,2]
[369601848,1751639449629,-460.0,0.00017808,2]
[369601849,1751639449640,-151.0,0.00017808,2]
[369601850,1751639449650,-460.0,0.00017808,2]
[369601851,1751639449659,-476.53057906,0.00017808,2]
[369601852,1751639449669,-460.0,0.00017808,2]
[369601853,1751639449678,-1381.49,0.00017808,2]
[369601854,1751639449688,-460.0,0.00017808,2]
[369601855,1751639449697,-460.0,0.00017808,2]
[369601856,1751639449706,-151.0,0.00017808,2]
[369601857,1751639449716,-1536.37,0.00017808,2]
[369601858,1751639449727,-460.0,0.00017808,2]
[369601859,1751639449737,-460.0,0.00017808,2]
[369601860,1751639449747,-460.0,0.00017808,2]
[369601861,1751639449757,-887.1,0.00017808,2]
[369601862,1751639449766,-460.0,0.00017808,2]
[369601863,1751639449775,-1906.15,0.00017808,2]
[369601864,1751639449785,-2258.56,0.00017808,2]